fUSD/lending_fUSD_20251027
["ID","MTS","AMOUNT","RATE_DAILY","PERIOD"]
[392524657,1761606659605,-489.18835723,0.00036712,7]
[392524658,1761606659615,-623.72,0.00036712,7]
[392524659,1761606659625,-500.0,0.00036712,7]
[392524660,1761606659634,-500.0,0.00036712,7]
[392524661,1761606659642,-557.37,0.00036712,7]
[392524662,1761606659652,-500.0,0.00036712,7]
[392524663,1761606659661,-500.0,0.00036712,7]
[392524664,1761606659672,-500.0,0.00036712,7]
[392524665,1761606659681,-500.0,0.00036712,7]
[392524666,1761606659691,-500.0,0.00036712,7]
[392524667,1761606659705,-500.0,0.00036712,7]
[392524668,1761606659715,-526.92,0.00036712,7]
[392524669,1761606659724,-500.0,0.00036712,7]
[392524670,1761606659735,-500.0,0.00036712,7]
[392524671,1761606659746,-2333.79,0.00036712,7]
[392524672,1761606659756,-554.21,0.00036712,7]
[392524673,1761606659766,-500.0,0.00036712,7]
[392524674,1761606659776,-500.0,0.00036712,7]
[392524675,1761606659787,-500.0,0.00036712,7]
[392524676,1761606659797,-300.0,0.00036712,2]
[392524677,1761606659809,-500.0,0.00036712,7]
[392524678,1761606659819,-2249.28,0.00036712,7]
[392524679,1761606659829,-241.93405406,0.00036712,7]
[392524680,1761606659840,-2269.57,0.00036712,7]
[392524681,1761606659850,-500.0,0.00036712,7]
[392524682,1761606659861,-500.0,0.00036712,7]
[392524683,1761606659871,-500.0,0.00036712,7]
[392524684,1761606659880,-500.0,0.00036712,7]
[392524685,1761606659890,-500.0,0.00036712,7]
[392524686,1761606659900,-2012.15,0.00036712,7]
[392524687,1761606659909,-1902.64,0.00036712,7]
[392524688,1761606659919,-500.0,0.00036712,7]
[392524689,1761606659929,-2375.57,0.00036712,7]
[392524690,1761606659938,-500.0,0.00036712,7]
[392524691,1761606659947,-500.0,0.00036712,7]
[392524692,1761606659957,-2297.02,0.00036712,7]
[392524693,1761606659966,-500.19,0.00036712,7]
[392524694,1761606659975,-568.71,0.00036712,7]
[392524695,1761606659985,-1125.64,0.00036712,7]
[392524696,1761606659994,-500.0,0.00036712,7]
[392524697,1761606660004,-2157.61,0.00036712,7]
[392524698,1761606660014,-500.0,0.00036712,7]
[392524699,1761606660024,-1439.09,0.00036712,7]
[392524700,1761606660034,-722.51,0.00036712,7]
[392524701,1761606660044,-662.5,0.00036712,7]
[392524702,1761606660053,-500.0,0.00036712,7]
[392524703,1761606660063,-500.0,0.00036712,7]
[392524704,1761606660073,-500.0,0.00036712,7]
[392524705,1761606660082,-2345.93,0.00036712,7]
[392524706,1761606660092,-500.0,0.00036712,7]
[392524707,1761606660102,-500.0,0.00036712,7]
[392524708,1761606660111,-839.53,0.00036712,7]
[392524709,1761606660121,-500.0,0.00036712,7]
[392524710,1761606660130,-1234.67,0.00036712,7]
[392524711,1761606660139,-500.0,0.00036712,7]
[392524712,1761606660149,-500.0,0.00036712,7]
[392524713,1761606660159,-500.0,0.00036712,7]
[392524714,1761606660168,-1837.35,0.00036712,7]
[392524715,1761606660178,-500.0,0.00036712,2]
[392524716,1761606660187,-500.0,0.00036712,7]
[392524717,1761606660197,-869.3,0.00036712,7]
[392524718,1761606660208,-500.0,0.00036712,7]
[392524719,1761606660218,-500.0,0.00036712,2]
[392524720,1761606660227,-500.0,0.00036712,7]
[392524721,1761606660236,-500.0,0.00036712,2]
[392524722,1761606660246,-500.0,0.00036712,7]
[392524723,1761606660255,-500.0,0.00036712,7]
[392524724,1761606660265,-500.0,0.00036712,2]
[392524725,1761606660274,-500.0,0.00036712,7]
[392524726,1761606660284,-369.14242651,0.00036712,7]
[392524727,1761606660294,-168.0,0.00036806,2]
[392524728,1761606660303,-1202.1,0.000369,2]
[392524729,1761606660314,-150.0,0.00036913,2]
[392524730,1761606660323,-2000.0,0.0003692,3]
[392524731,1761606660332,-2000.0,0.0003692,3]
[392524732,1761606660342,-2000.0,0.0003692,3]
[392524733,1761606660352,-598.0,0.00036922,7]
[392524734,1761606660361,-450.0,0.00036968,5]
[392524735,1761606660370,-500.0,0.00036986,7]
[392524736,1761606660380,-500.0,0.00036986,7]
[392524737,1761606660390,-500.0,0.00036986,7]
[392524738,1761606660400,-500.0,0.00036986,7]
[392524739,1761606660410,-500.0,0.00036986,7]
[392524740,1761606660419,-500.0,0.00036986,7]
[392524741,1761606660429,-500.0,0.00036986,7]
[392524742,1761606660439,-523.92,0.00036986,7]
[392524743,1761606660448,-282.38756517,0.00036986,7]
[392524744,1761606660457,-500.0,0.00036986,7]
[392524745,1761606660468,-2158.39,0.00036986,7]
[392524746,1761606660477,-500.0,0.00036986,7]
[392524747,1761606660487,-618.23,0.00036986,7]
[392524748,1761606660496,-500.0,0.00036986,7]
[392524749,1761606660506,-500.0,0.00036986,7]
[392524750,1761606660515,-500.0,0.00036986,7]
[392524751,1761606660525,-500.0,0.00036986,7]
[392524752,1761606660535,-617.91,0.00036986,7]
[392524753,1761606660544,-5347.46,0.00036986,7]
[392524754,1761606660554,-1137.93,0.00036986,2]
[392524755,1761606660564,-500.0,0.00036986,7]
[392524756,1761606660574,-500.0,0.00036986,7]
[392524757,1761606660584,-955.26,0.00036986,7]
[392524758,1761606660594,-600.09,0.00036986,7]
[392524759,1761606660603,-2171.75,0.00036986,7]
[392524760,1761606660612,-500.0,0.00036986,7]
[392524761,1761606660622,-500.0,0.00036986,7]
[392524762,1761606660632,-2152.45,0.00036986,7]
[392524763,1761606660642,-1447.02,0.00036986,7]
[392524764,1761606660651,-500.0,0.00036986,7]
[392524765,1761606660662,-2215.75,0.00036986,7]
[392524766,1761606660671,-500.0,0.00036986,7]
[392524767,1761606660681,-2252.34,0.00036986,7]
[392524768,1761606660691,-500.0,0.00036986,7]
[392524769,1761606660704,-500.0,0.00036986,7]
[392524770,1761606660715,-562.65,0.00036986,7]
[392524771,1761606660725,-500.0,0.00036986,7]
[392524772,1761606660736,-500.0,0.00036986,7]
[392524773,1761606660748,-500.0,0.00036986,7]
[392524774,1761606660759,-500.0,0.00036986,7]
[392524775,1761606660770,-573.69,0.00036986,7]
[392524776,1761606660782,-814.41,0.00036986,7]
[392524777,1761606660793,-500.0,0.00036986,7]
[392524778,1761606660803,-783.14,0.00036986,7]
[392524779,1761606660816,-623.72,0.00036986,7]
[392524780,1761606660832,-500.0,0.00036986,7]
[392524781,1761606660842,-500.0,0.00036986,7]
[392524782,1761606660852,-557.37,0.00036986,7]
[392524783,1761606661022,-500.0,0.00036986,7]
[392524784,1761606661032,-500.0,0.00036986,7]
[392524785,1761606661042,-500.0,0.00036986,7]
[392524786,1761606661053,-500.0,0.00036986,7]
[392524787,1761606661062,-500.0,0.00036986,7]
[392524788,1761606661072,-500.0,0.00036986,7]
[392524789,1761606661081,-526.92,0.00036986,7]
[392524790,1761606661091,-500.0,0.00036986,7]
[392524791,1761606661100,-500.0,0.00036986,7]
[392524792,1761606661110,-2333.79,0.00036986,7]
[392524793,1761606661120,-554.21,0.00036986,7]
[392524794,1761606661130,-500.0,0.00036986,7]
[392524795,1761606661140,-500.0,0.00036986,7]
[392524796,1761606661150,-500.0,0.00036986,7]
[392524797,1761606661159,-300.0,0.00036986,2]
[392524798,1761606661169,-508.32308422,0.00036986,7]
[392524799,1761606661179,-2249.28,0.00036986,7]
[392524800,1761606661189,-2269.57,0.00036986,7]
[392524801,1761606661198,-500.0,0.00036986,7]
[392524802,1761606661207,-500.0,0.00036986,7]
[392524803,1761606661217,-500.0,0.00036986,7]
[392524804,1761606661226,-573.68767127,0.00036986,7]
[392524805,1761606661236,-500.0,0.00036986,7]
[392524806,1761606661246,-2012.15,0.00036986,7]
[392524807,1761606661255,-1902.64,0.00036986,7]
[392524808,1761606661265,-500.0,0.00036986,7]
[392524809,1761606661274,-2375.57,0.00036986,7]
[392524810,1761606661284,-500.0,0.00036986,7]
[392524811,1761606661293,-500.0,0.00036986,7]
[392524812,1761606661302,-2297.02,0.00036986,7]
[392524813,1761606661312,-500.19,0.00036986,7]
[392524814,1761606661321,-568.71,0.00036986,7]
[392524815,1761606661331,-1125.64,0.00036986,7]
[392524816,1761606661340,-500.0,0.00036986,7]
[392524817,1761606661350,-2157.61,0.00036986,7]
[392524818,1761606661360,-500.0,0.00036986,7]
[392524819,1761606661370,-1439.09,0.00036986,7]
[392524820,1761606661380,-722.51,0.00036986,7]
[392524821,1761606661390,-662.5,0.00036986,7]
[392524822,1761606661400,-500.0,0.00036986,7]
[392524823,1761606661410,-500.0,0.00036986,7]
[392524824,1761606661419,-2345.93,0.00036986,7]
[392524825,1761606661429,-292.77544322,0.00036986,7]
[392524826,1761606661439,-424.48190365,0.00036986,7]
[392524827,1761606661449,-839.53,0.00036986,7]
[392524828,1761606661459,-500.0,0.00036986,7]
[392524829,1761606661468,-1234.67,0.00036986,7]
[392524830,1761606661478,-500.0,0.00036986,7]
[392524831,1761606661488,-500.0,0.00036986,7]
[392524832,1761606661497,-500.0,0.00036986,7]
[392524833,1761606661507,-1837.35,0.00036986,7]
[392524834,1761606661517,-500.0,0.00036986,2]
[392524835,1761606661527,-500.0,0.00036986,7]
[392524836,1761606661537,-869.3,0.00036986,7]
[392524837,1761606661547,-500.0,0.00036986,7]
[392524838,1761606661557,-222.7711557,0.00036986,2]
[392524839,1761606661566,-500.0,0.00036986,7]
[392524840,1761606661576,-501.83812961,0.00036986,2]
[392524841,1761606661586,-500.0,0.00036986,7]
[392524842,1761606661596,-500.0,0.00036986,7]
[392524843,1761606661607,-500.0,0.00036986,2]
[392524844,1761606661617,-500.0,0.00036986,7]
[392524845,1761606661626,-999.0,0.00036986,120]
[392524846,1761606661636,-5203.961833,0.00037,14]
[392524847,1761606661646,-1237.0,0.00037,7]
[392524848,1761606661655,-1237.0,0.00037,7]
[392524849,1761606661665,-1237.0,0.00037,7]
[392524850,1761606661674,-1237.0,0.00037,7]
[392524851,1761606661684,-1237.0,0.00037,7]
[392524852,1761606661694,-1237.0,0.00037,7]
[392524853,1761606661707,-1237.0,0.00037,7]
[392524854,1761606661717,-1237.0,0.00037,7]
[392524855,1761606661727,-1237.0,0.00037,7]
[392524856,1761606661737,-1237.0,0.00037,7]
[392524857,1761606661748,-1237.0,0.00037,7]
[392524858,1761606661758,-1237.0,0.00037,7]
[392524859,1761606661768,-1237.0,0.00037,7]
[392524860,1761606661778,-1237.0,0.00037,7]
[392524861,1761606661788,-1237.0,0.00037,7]
[392524862,1761606661798,-1237.0,0.00037,7]
[392524863,1761606661807,-1237.0,0.00037,7]
[392524864,1761606661817,-1237.0,0.00037,7]
[392524865,1761606661827,-1237.0,0.00037,7]
[392524866,1761606661837,-1237.0,0.00037,7]
[392524867,1761606661847,-1237.0,0.00037,7]
[392524868,1761606661856,-1237.0,0.00037,7]
[392524869,1761606661867,-1237.0,0.00037,7]
[392524870,1761606661876,-1237.0,0.00037,7]
[392524871,1761606661886,-1237.0,0.00037,7]
[392524872,1761606661895,-1237.0,0.00037,7]
[392524873,1761606661906,-1237.0,0.00037,7]
[392524874,1761606661916,-1237.0,0.00037,7]
[392524875,1761606661926,-1237.0,0.00037,7]
[392524876,1761606661936,-1147.0,0.00037,7]
[392524877,1761606661948,-168.0,0.00037027,2]
[392524878,1761606661958,-7606.93347913,0.00037035,2]
[392524879,1761606661968,-153.50290264,0.00037035,2]
[392524880,1761606661978,-418.38588475,0.00037035,2]
[392524881,1761606661988,-335.97867934,0.00037035,2]
[392524882,1761606661999,-453.28078983,0.00037035,2]
[392524883,1761606662008,-335.97867934,0.00037051,2]
[392524884,1761606662018,-5800.0,0.000371,2]
[392524885,1761606662029,-640.48464731,0.000371,120]
[392524886,1761606662039,-1000.0,0.00037115,2]
[392524887,1761606662049,-1000.0,0.00037115,2]
[392524888,1761606662059,-150.0,0.00037117,2]
[392524889,1761606662068,-150.0,0.00037123,2]
[392524890,1761606662078,-150.0,0.00037123,2]
[392524891,1761606662088,-150.0,0.00037123,2]
[392524892,1761606662097,-1068.77454671,0.00037125,2]
[392524893,1761606662107,-182711.963488,0.00037133,2]
[392524894,1761606662116,-378.88158784,0.00037135,2]
[392524895,1761606662126,-9507.10497434,0.00037135,2]
[392524896,1761606662135,-9507.10497434,0.00037135,2]
[392524897,1761606662145,-217652.76498812,0.00037135,30]
[392524898,1761606662154,-213.72870467,0.00037135,31]
[392524899,1761606662165,-8995.32557103,0.00037135,30]
[392524900,1761606662174,-5721.37849095,0.00037135,30]
[392524901,1761606662184,-402.85370461,0.00037135,30]
[392524902,1761606662193,-275.0840316,0.00037135,30]
[392524903,1761606662204,-481.50658447,0.00037135,30]
[392524904,1761606662213,-7433.25307969,0.00037135,30]
[392524905,1761606662223,-406.27561806,0.00037135,30]
[392524906,1761606662233,-1000.0,0.00037135,30]
[392524907,1761606662243,-399.12513623,0.00037135,30]
[392524908,1761606662253,-297.99486306,0.00037135,30]
[392524909,1761606662263,-1381743.00153819,0.00037135,30]
[392524910,1761606662272,-15141.22309924,0.00037135,3]
[392524911,1761606662281,-496.12662054,0.00037135,3]
[392524912,1761606662291,-240.00655984,0.00037135,3]
[392524913,1761606662300,-1000.0,0.00037135,30]
[392524914,1761606662309,-200.0,0.00037135,30]
[392524915,1761606662319,-300.0,0.00037135,30]
[392524916,1761606662329,-1000.0,0.00037135,30]
[392524917,1761606662338,-1000.0,0.00037135,30]
[392524918,1761606662348,-1000.0,0.00037135,30]
[392524919,1761606662358,-1000.0,0.00037135,30]
[392524920,1761606662367,-1000.0,0.00037135,30]
[392524921,1761606662376,-1000.0,0.00037135,30]
[392524922,1761606662386,-1349.85490288,0.00037135,30]
[392524923,1761606662396,-2732618.16412385,0.00037135,30]
[392524924,1761606662405,-156.5,0.00037135,2]
[392524925,1761606662415,-5000.0,0.00037135,14]
[392524926,1761606662424,-5000.0,0.00037135,14]
[392524927,1761606662434,-5000.0,0.00037135,14]
[392524928,1761606662443,-5000.0,0.00037135,14]
[392524929,1761606662453,-129756.11928965,0.00037135,2]
[392524930,1761606662462,-575.42796997,0.00037135,5]
[392524931,1761606662471,-2027.0860445,0.00037135,5]
[392524932,1761606662481,-1094.39447266,0.00037135,7]
[392524933,1761606662490,-1000.0,0.00037135,30]
[392524934,1761606662499,-1000.0,0.00037135,30]
[392524935,1761606662508,-1000.0,0.00037135,30]
[392524936,1761606662518,-1000.0,0.00037135,30]
[392524937,1761606662528,-1000.0,0.00037135,30]
[392524938,1761606662538,-1000.0,0.00037135,30]
[392524939,1761606662547,-1000.0,0.00037135,30]
[392524940,1761606662557,-1000.0,0.00037135,30]
[392524941,1761606662566,-1000.0,0.00037135,30]
[392524942,1761606662575,-1000.0,0.00037135,30]
[392524943,1761606662585,-1000.0,0.00037135,30]
[392524944,1761606662594,-1000.0,0.00037135,30]
[392524945,1761606662604,-1000.0,0.00037135,30]
[392524946,1761606662613,-1000.0,0.00037135,30]
[392524947,1761606662622,-448.48384471,0.00037135,30]
[392524948,1761606662632,-1000.0,0.00037135,30]
[392524949,1761606662641,-1000.0,0.00037135,30]
[392524950,1761606662651,-215.0,0.00037135,30]
[392524951,1761606662663,-5050.0,0.00037135,36]
[392524952,1761606662673,-1000.0,0.00037135,30]
[392524953,1761606662685,-816.07871319,0.00037135,30]
[392524954,1761606662694,-953.52329051,0.00037135,30]
[392524955,1761606662708,-1100.0,0.00037135,4]
[392524956,1761606662717,-150.0,0.00037135,30]
[392524957,1761606662732,-1610.11063972,0.00037135,10]
[392524958,1761606662743,-2320.87641591,0.00037135,10]
[392524959,1761606662752,-2347.64798999,0.00037135,10]
[392524960,1761606662762,-1000.0,0.00037135,10]
[392524961,1761606662771,-5022.60934155,0.00037135,10]
[392524962,1761606662781,-5421.5516751,0.00037135,10]
[392524963,1761606662792,-10251.76,0.00037135,30]
[392524964,1761606662803,-5226.46054982,0.00037135,2]
[392524965,1761606662813,-6000.0,0.00037135,2]
[392524966,1761606662823,-381.22023712,0.00037135,2]
[392524967,1761606662833,-1492.59513554,0.00037135,2]
[392524968,1761606662843,-813.93791508,0.00037135,2]
[392524969,1761606662853,-48313.15164743,0.00037135,2]
[392524970,1761606662863,-12617.90885283,0.00037135,2]
[392524971,1761606662873,-1430.54146046,0.00037135,2]
[392524972,1761606662884,-550.0,0.00037135,2]
[392524973,1761606662895,-1024.92878606,0.00037135,2]
[392524974,1761606662904,-2492.38141247,0.00037135,2]
[392524975,1761606662914,-837.53731514,0.00037135,30]
[392524976,1761606662927,-677.72804612,0.00037135,5]
[392524977,1761606662938,-7297.44096328,0.00037135,30]
[392524978,1761606662949,-62424.45071517,0.00037135,30]
[392524979,1761606662959,-49082928.41068906,0.00037135,30]
[392524980,1761606663132,-924626.16594146,0.00037135,30]
[392524981,1761606663144,-57072.82,0.00037135,30]
[392524982,1761606663180,-521.7277719,0.00037135,30]
[392524983,1761606663268,-349.87046341,0.0003589,7]
[392524984,1761606663279,-150.12953659,0.0003589,7]
[392524985,1761606663292,-158.39905226,0.00036164,7]
[392524986,1761606663304,-341.60094774,0.00036164,7]
[392524987,1761606663313,-500.0,0.00036438,7]
[392524988,1761606663375,-500.0,0.00036712,7]
[392524989,1761606663385,-500.0,0.00036986,7]
[392524990,1761606663394,-13393.19773514,0.00037135,30]
[392524991,1761606663406,-2922.4564224,0.00037135,30]
[392524992,1761606665225,250.0,0.00037135,50]
[392524993,1761606665430,478.5530575,0.00037135,50]
[392524994,1761606665869,250.0,0.00037135,50]
[392524995,1761606666474,250.0,0.00037135,50]
[392524996,1761606667233,250.0,0.00037135,50]
[392524997,1761606667842,250.0,0.00037135,50]
[392524998,1761606667944,250.0,0.00037135,50]
[392524999,1761606668072,500.0,0.00037135,50]
[392525000,1761606668546,250.0,0.00037135,50]
[392525001,1761606668618,250.0,0.00037135,50]
[392525002,1761606668705,500.0,0.00037135,50]
[392525003,1761606669194,250.0,0.00037135,50]
[392525004,1761606669317,500.0,0.00037135,50]
[392525005,1761606669965,500.0,0.00037135,50]
[392525006,1761606670570,500.0,0.00037135,50]
[392525007,1761606670922,250.0,0.00037135,50]
[392525008,1761606671179,500.0,0.00037135,50]
[392525009,1761606671834,500.0,0.00037135,50]
[392525010,1761606672494,500.0,0.00037135,50]
[392525011,1761606672954,277.35679052,0.00037135,50]
[392525012,1761606673105,500.0,0.00037135,50]
[392525013,1761606673733,500.0,0.00037135,50]
[392525014,1761606676964,586.78330678,0.00037135,50]
[392525015,1761606679663,520.0,0.00037135,50]
[392525016,1761606680261,539.24,0.00037135,50]
[392525017,1761606682989,322.6107,0.00037135,50]
[392525018,1761606725512,220.0,0.00037135,50]
[392525019,1761606725589,200.0,0.00037135,50]
[392525020,1761606725670,250.0,0.00037135,50]
[392525021,1761606725751,151.0,0.00037135,50]
[392525022,1761606725864,395.90849845,0.00037135,50]
[392525023,1761606725947,500.0,0.00037135,50]
[392525024,1761606726030,500.0,0.00037135,50]
[392525025,1761606726185,200.0,0.00037135,50]
[392525026,1761606726263,220.0,0.00037135,50]
[392525027,1761606726337,200.0,0.00037135,50]
[392525028,1761606726417,250.0,0.00037135,50]
[392525029,1761606726872,151.0,0.00037135,50]
[392525030,1761606726950,300.0,0.00037135,50]
[392525031,1761606727042,500.0,0.00037135,50]
[392525032,1761606727139,500.0,0.00037135,50]
[392525033,1761606727219,200.0,0.00037135,50]
[392525034,1761606727302,220.0,0.00037135,50]
[392525035,1761606727387,250.0,0.00037135,50]
[392525036,1761606727466,151.0,0.00037135,50]
[392525037,1761606727547,311.1,0.00037135,50]
[392525038,1761606727638,500.0,0.00037135,50]
[392525039,1761606727731,500.0,0.00037135,50]
[392525040,1761606727825,200.0,0.00037135,50]
[392525041,1761606727915,250.0,0.00037135,50]
[392525042,1761606728011,322.6107,0.00037135,50]
[392525043,1761606728112,151.0,0.00037135,50]
[392525044,1761606728265,500.0,0.00037135,50]
[392525045,1761606728361,500.0,0.00037135,50]
[392525046,1761606728460,250.0,0.00037135,50]
[392525047,1761606728558,322.6107,0.00037135,50]
[392525048,1761606728673,500.0,0.00037135,50]
[392525049,1761606728775,500.0,0.00037135,50]
[392525050,1761606728885,250.0,0.00037135,50]
[392525051,1761606729015,500.0,0.00037135,50]
[392525052,1761606729119,500.0,0.00037135,50]
[392525053,1761606729455,250.0,0.00037135,50]
[392525054,1761606729589,500.0,0.00037135,50]
[392525055,1761606729702,500.0,0.00037135,50]
[392525056,1761606729848,500.0,0.00037135,50]
[392525057,1761606730032,500.0,0.00037135,50]
[392525058,1761606730167,250.0,0.00037135,50]
[392525059,1761606730301,500.0,0.00037135,50]
[392525060,1761606730441,500.0,0.00037135,50]
[392525061,1761606730572,200.0,0.00037135,50]
[392525062,1761606730685,500.0,0.00037135,50]
[392525063,1761606730801,500.0,0.00037135,50]
[392525064,1761606730935,250.0,0.00037135,50]
[392525065,1761606731047,500.0,0.00037135,50]
[392525066,1761606731180,500.0,0.00037135,50]
[392525067,1761606731309,200.0,0.00037135,50]
[392525068,1761606731421,500.0,0.00037135,50]
[392525069,1761606731537,250.0,0.00037135,50]
[392525070,1761606731663,500.0,0.00037135,50]
[392525071,1761606731794,500.0,0.00037135,50]
[392525072,1761606731901,500.0,0.00037135,50]
[392525073,1761606732031,500.0,0.00037135,50]
[392525074,1761606732140,250.0,0.00037135,50]
[392525075,1761606732239,500.0,0.00037135,50]
[392525076,1761606732344,500.0,0.00037135,50]
[392525077,1761606732465,500.0,0.00037135,50]
[392525078,1761606732569,500.0,0.00037135,50]
[392525079,1761606732667,500.0,0.00037135,50]
[392525080,1761606732764,518.5,0.00037135,50]
[392525081,1761606732858,250.0,0.00037135,50]
[392525082,1761606732961,500.0,0.00037135,50]
[392525083,1761606733047,500.0,0.00037135,50]
[392525084,1761606733132,500.0,0.00037135,50]
[392525085,1761606733214,500.0,0.00037135,50]
[392525086,1761606733321,250.0,0.00037135,50]
[392525087,1761606733428,537.6845,0.00037135,50]
[392525088,1761606733534,500.0,0.00037135,50]
[392525089,1761606733682,200.0,0.00037135,50]
[392525090,1761606733766,500.0,0.00037135,50]
[392525091,1761606733848,250.0,0.00037135,50]
[392525092,1761606733934,537.6845,0.00037135,50]
[392525093,1761606734045,200.0,0.00037135,50]
[392525094,1761606734125,500.0,0.00037135,50]
[392525095,1761606734209,500.0,0.00037135,50]
[392525096,1761606734321,200.0,0.00037135,50]
[392525097,1761606734402,500.0,0.00037135,50]
[392525098,1761606734482,250.0,0.00037135,50]
[392525099,1761606734595,207.4,0.00037135,50]
[392525100,1761606734802,500.0,0.00037135,50]
[392525101,1761606734896,500.0,0.00037135,50]
[392525102,1761606734977,500.0,0.00037135,50]
[392525103,1761606735058,250.0,0.00037135,50]
[392525104,1761606735136,200.0,0.00037135,50]
[392525105,1761606735364,215.0738,0.00037135,50]
[392525106,1761606735451,500.0,0.00037135,50]
[392525107,1761606735540,500.0,0.00037135,50]
[392525108,1761606735635,250.0,0.00037135,50]
[392525109,1761606735734,500.0,0.00037135,50]
[392525110,1761606735829,250.0,0.00037135,50]
[392525111,1761606735924,223.0315306,0.00037135,50]
[392525112,1761606736002,500.0,0.00037135,50]
[392525113,1761606736082,500.0,0.00037135,50]
[392525114,1761606736169,250.0,0.00037135,50]
[392525115,1761606736327,250.0,0.00037135,50]
[392525116,1761606736485,231.28369723,0.00037135,50]
[392525117,1761606736574,500.0,0.00037135,50]
[392525118,1761606736667,500.0,0.00037135,50]
[392525119,1761606736752,250.0,0.00037135,50]
[392525120,1761606736961,250.0,0.00037135,50]
[392525121,1761606737147,500.0,0.00037135,50]
[392525122,1761606737225,239.84119403,0.00037135,50]
[392525123,1761606737306,500.0,0.00037135,50]
[392525124,1761606737377,250.0,0.00037135,50]
[392525125,1761606737617,250.0,0.00037135,50]
[392525126,1761606737762,248.71531821,0.00037135,50]
[392525127,1761606737835,500.0,0.00037135,50]
[392525128,1761606737908,500.0,0.00037135,50]
[392525129,1761606737991,250.0,0.00037135,50]
[392525130,1761606738216,250.0,0.00037135,50]
[392525131,1761606738432,500.0,0.00037135,50]
[392525132,1761606738504,257.91778498,0.00037135,50]
[392525133,1761606738577,500.0,0.00037135,50]
[392525134,1761606738660,250.0,0.00037135,50]
[392525135,1761606738832,250.0,0.00037135,50]
[392525136,1761606739043,267.46074303,0.00037135,50]
[392525137,1761606739128,500.0,0.00037135,50]
[392525138,1761606739222,250.0,0.00037135,50]
[392525139,1761606739448,250.0,0.00037135,50]
[392525140,1761606739670,277.35679052,0.00037135,50]
[392525141,1761606739752,500.0,0.00037135,50]
[392525142,1761606739850,250.0,0.00037135,50]
[392525143,1761606740090,250.0,0.00037135,50]
[392525144,1761606740279,287.61899177,0.00037135,50]
[392525145,1761606740409,500.0,0.00037135,50]
[392525146,1761606740496,250.0,0.00037135,50]
[392525147,1761606740710,250.0,0.00037135,50]
[392525148,1761606740803,151.0,0.00037135,50]
[392525149,1761606740893,298.26089446,0.00037135,50]
[392525150,1761606741059,500.0,0.00037135,50]
[392525151,1761606741140,250.0,0.00037135,50]
[392525152,1761606741326,250.0,0.00037135,50]
[392525153,1761606741418,151.0,0.00037135,50]
[392525154,1761606741678,500.0,0.00037135,50]
[392525155,1761606741764,250.0,0.00037135,50]
[392525156,1761606741850,250.0,0.00037135,50]